bitfinex-derivatives/quotes_ETHF0:USTF0_20250606
["timestamp","ask_amount","ask_price","bid_price","bid_amount"]
[1749240061859,2.06836,2485.7,2485.6,2.5684]
[1749240064567,0.00603464,2485.9,2485.6,2.5684]
[1749240064767,0.00603464,2485.9,2485.8,0.80393]
[1749240064972,0.00603464,2485.9,2485.8,5.85893]
[1749240065168,2.6206,2486.5,2486.4,0.80374]
[1749240065479,0.80368,2486.6,2486.5,0.80368]
[1749240065871,4.01145,2486.7,2486.6,0.80367]
[1749240066072,0.80369,2486.6,2486.5,0.80368]
[1749240066373,3.21383464,2486.7,2486.3,5.74803464]
[1749240066579,3.21383464,2486.7,2486.6,0.80367]
[1749240066779,3.21383464,2486.7,2486.5,0.80367]
[1749240066971,0.80368,2486.6,2486.5,0.80367]
[1749240067171,3.21383464,2486.7,2486.4,0.8306]
[1749240067372,0.8037,2486.5,2486.4,0.8306]
[1749240067572,0.8037,2486.5,2486.4,2.25054]
[1749240067776,0.8037,2486.5,2486.4,1.4468]
[1749240067970,0.8037,2486.5,2486.4,2.25054]
[1749240069181,2.16759,2486.6,2486.5,0.8037]
[1749240069679,0.80371,2486.5,2486.4,2.25052]
[1749240069880,0.80371,2486.5,2486.4,1.4468]
[1749240070982,2.1676,2486.6,2486.5,0.8037]
[1749240071577,0.8037,2486.5,2486.4,2.25051]
[1749240071776,2.1676,2486.6,2486.5,0.8037]
[1749240072683,0.80371,2486.5,2486.4,2.25051]
[1749240073578,2.16759,2486.6,2486.5,0.80371]
[1749240073781,0.00603464,2486.7,2486.6,0.80367]
[1749240073988,0.00603464,2486.7,2486.6,4.01147]
[1749240074181,0.00603464,2486.7,2486.6,0.80367]
[1749240074482,0.00603464,2486.7,2486.5,0.80367]
[1749240074677,0.00603464,2486.7,2486.5,0.6032]
[1749240074885,0.80367,2486.6,2486.5,0.6032]
[1749240075078,2.80157,2486.6,2486.5,5.6572]
[1749240075283,2.80157,2486.6,2486.5,0.6032]
[1749240075684,2.80157,2486.6,2486.5,1.40691]
[1749240076786,1.9979,2486.6,2486.5,1.40691]
[1749240077485,0.80969464,2486.7,2486.6,0.80367]
[1749240077486,0.00603464,2486.7,2486.6,0.80367]
[1749240078591,0.00603464,2486.7,2486.6,4.01147]
[1749240079187,0.00603464,2486.7,2486.6,9.06547]
[1749240079384,0.00603464,2486.7,2486.6,5.85767]
[1749240080587,0.00603464,2486.7,2486.6,9.06547]
[1749240082691,0.00603464,2486.7,2486.6,8.99947]
[1749240083080,0.80367,2486.6,2486.5,5.5912]
[1749240083275,0.80367,2486.6,2486.5,6.39491]
[1749240083483,0.6751,2486.6,2486.5,6.39491]
[1749240084286,1.9819,2486.6,2486.5,6.39491]
[1749240084490,1.9819,2486.6,2486.5,1.40691]
[1749240084883,0.6751,2486.6,2486.5,1.40691]
[1749240085489,0.00603464,2486.7,2486.6,0.80367]
[1749240086086,0.00603464,2486.7,2486.6,4.01147]
[1749240086281,0.00603464,2486.7,2486.6,5.37647]
[1749240087585,5.35628,2487.3,2487.2,0.80348]
[1749240087886,0.6914,2487.4,2487.3,0.80345]
[1749240088081,0.655,2487.6,2487.5,0.80338]
[1749240088082,1.45837,2487.6,2487.5,0.80338]
[1749240088586,1.45835,2487.6,2487.5,0.80338]
[1749240089192,0.655,2487.6,2487.5,0.80338]
[1749240089387,0.6914,2487.7,2487.3,7.65133]
[1749240089587,1.9744,2487.7,2487.3,5.6427]
[1749240089886,0.80338,2487.5,2487.4,0.80342]
[1749240090085,0.80338,2487.5,2487.0,3.36157]
[1749240090086,3.98273,2487.7,2486.9,5.21672]
[1749240090287,3.2078,2487.2,2486.6,4.987]
[1749240090483,0.80366,2486.7,2486.6,0.80366]
[1749240090691,0.80363,2486.8,2486.7,0.80363]
[1749240091895,2.1892,2486.9,2486.8,0.80361]
[1749240092188,0.80365,2486.8,2486.7,0.80363]
[1749240092386,2.18925,2486.8,2486.7,0.80363]
[1749240093801,3.3076,2487.1,2486.8,0.80361]
[1749240093802,0.8036,2486.9,2486.8,0.80361]
[1749240094495,1.75257644,2486.9,2486.8,0.80361]
[1749240095096,0.8036,2486.9,2486.8,0.80361]
[1749240095694,1.75278407,2486.9,2486.8,0.80361]
[1749240095890,2.25358407,2486.9,2486.8,0.80361]
[1749240096085,1.2988,2487.1,2486.6,8.59599]
[1749240096293,0.80359,2487.0,2486.9,0.80356]
[1749240096688,2.10799,2487.0,2486.9,0.80356]
[1749240097898,3.05794679,2487.0,2486.9,0.80356]
[1749240098197,2.10799,2487.0,2486.9,0.80356]
[1749240098999,3.05735162,2487.0,2486.9,0.80356]
[1749240099197,1.3044,2487.0,2486.9,0.80356]
[1749240099699,2.10795,2487.0,2486.9,0.80356]
[1749240099889,1.3044,2487.0,2486.9,0.80356]
[1749240100197,0.6639,2487.1,2487.0,0.80355]
[1749240100396,0.80358,2487.0,2486.9,0.80356]
[1749240101194,3.2078,2487.2,2486.8,5.14088]
[1749240101394,4.01133,2487.2,2487.1,0.80351]
[1749240101699,3.2078,2487.2,2487.1,0.80351]
[1749240101998,0.80344,2487.4,2487.3,0.80342]
[1749240103096,0.80345,2487.3,2487.2,1.43214]
[1749240104997,1.2748,2487.5,2487.2,1.43214]
[1749240104998,0.80334,2487.7,2487.6,0.80332]
[1749240105199,0.00603464,2487.8,2487.2,0.6287]
[1749240105200,0.00603464,2487.8,2487.7,0.80332]
[1749240106802,0.00603464,2487.8,2487.7,2.77782]
[1749240107199,0.02599,2488.0,2487.9,0.80325]
[1749240107500,0.02599,2488.0,2487.9,8.99705]
[1749240107697,5.9366,2488.6,2487.9,8.99705]
[1749240107698,5.9366,2488.6,2488.3,0.8031]
[1749240107898,0.8031,2488.4,2488.3,0.8031]
[1749240108098,0.80308,2488.5,2488.4,0.80308]
[1749240108912,5.9366,2488.6,2488.2,0.6962]
[1749240109120,0.80307,2488.5,2488.4,0.80307]
[1749240110115,5.9366,2488.6,2488.5,0.80306]
[1749240110510,5.2912,2488.6,2488.5,0.80306]
[1749240110815,3.2078,2488.6,2488.5,0.80306]
[1749240111119,4.01083,2488.6,2488.5,0.80306]
[1749240113320,3.2078,2488.6,2488.5,0.80306]
[1749240113619,4.01083,2488.6,2488.5,0.80306]
[1749240114019,4.01083,2488.6,2488.4,3.8307]
[1749240114020,0.80306,2488.5,2488.4,4.63377]
[1749240114220,2.82266,2488.5,2488.4,4.63377]
[1749240115419,2.0196,2488.5,2488.4,4.63377]
[1749240116112,2.82266,2488.5,2488.4,4.63379]
[1749240116307,2.82266,2488.5,2488.4,4.4334]
[1749240116510,2.82266,2488.5,2488.4,5.23649]
[1749240117713,2.82266,2488.5,2488.4,4.4334]
[1749240118417,3.2078,2488.6,2488.5,0.80306]
[1749240118821,0.80303,2488.6,2488.5,0.80306]
[1749240119622,0.80306,2488.5,2488.4,5.23647]
[1749240120223,0.80306,2488.5,2488.4,4.4334]
[1749240120423,0.80306,2488.5,2488.4,5.23649]
[1749240120616,1.44566,2488.5,2488.4,4.4334]
[1749240120923,1.44566,2488.5,2488.4,5.23649]
[1749240121223,1.44566,2488.5,2488.4,4.4334]
[1749240121615,1.44566,2488.5,2488.4,5.23649]
[1749240122216,1.44566,2488.5,2488.4,4.4334]
[1749240123716,11.38666,2488.5,2488.4,4.4334]
[1749240123924,11.38666,2488.5,2488.4,0.30418141]
[1749240124123,0.80309,2488.4,2488.3,0.8299]
[1749240124421,5.33999,2488.4,2488.3,0.8299]
[1749240124624,10.33999,2488.4,2488.3,0.8299]
[1749240124817,5.33999,2488.4,2488.3,1.63303]
[1749240125222,5.33999,2488.4,2488.3,0.8299]
[1749240128226,10.33999,2488.4,2488.3,0.8299]
[1749240128626,15.28099,2488.4,2488.3,0.8299]
[1749240129022,5.33999,2488.4,2488.3,1.63303]
[1749240129222,3.2078,2488.4,2488.3,1.63303]
[1749240129525,3.2078,2488.4,2488.3,4.39393]
[1749240129728,0.80309,2488.4,2488.3,4.39393]
[1749240130830,0.80308,2488.5,2488.4,0.80306]
[1749240131828,0.80309,2488.4,2488.3,3.5908]
[1749240132329,5.80309,2488.4,2488.3,3.5908]
[1749240132628,6.43449,2488.4,2488.3,3.5908]
[1749240134728,6.43449,2488.4,2488.3,2.7609]
[1749240135228,6.43449,2488.4,2488.3,1.77553]
[1749240138229,6.43449,2488.4,2488.3,0.96664]
[1749240138424,0.80313,2488.3,2488.2,0.09016]
[1749240138729,0.80319,2488.1,2488.0,0.4549]
[1749240138930,5.74419,2488.1,2488.0,0.4549]
[1749240139130,10.74419,2488.1,2488.0,0.4549]
[1749240139432,7.12109,2488.1,2488.0,0.4549]
[1749240142934,0.80335,2487.6,2487.5,0.00603464]
[1749240143134,4.01115,2487.6,2487.5,4.64e-06]
[1749240143631,6.07955,2487.6,2487.5,4.64e-06]
[1749240143831,4.01115,2487.6,2487.5,4.64e-06]
[1749240144033,8.92415,2487.6,2487.5,4.64e-06]
[1749240145335,10.32005,2487.6,2487.5,4.64e-06]
[1749240146335,5.40705,2487.6,2487.5,4.64e-06]
[1749240146634,8.92415,2487.6,2487.5,4.64e-06]
[1749240147834,10.30165,2487.6,2487.5,4.64e-06]
[1749240149737,8.92415,2487.6,2487.5,4.64e-06]
[1749240152531,4.01115,2487.6,2487.5,4.64e-06]
[1749240152935,4.01115,2487.6,2487.5,0.69530464]
[1749240153339,4.01115,2487.6,2487.5,1.49868464]
[1749240153640,4.01115,2487.6,2487.5,0.69530464]
[1749240153937,4.01115,2487.6,2487.5,1.49868464]
[1749240154239,4.01115,2487.6,2487.5,0.69530464]
[1749240154635,4.01115,2487.6,2487.5,2.82378464]
[1749240155041,3.2078,2487.6,2487.5,7.82378464]
[1749240156340,4.01115,2487.6,2487.5,7.82378464]
[1749240157040,2.00815,2487.9,2487.5,7.02040464]
[1749240157236,0.80335,2487.7,2487.6,0.80334]
[1749240157439,0.80335,2487.6,2487.5,1.49866464]
[1749240157938,0.80335,2487.6,2487.5,6.49866464]
[1749240158440,0.80335,2487.6,2487.5,1.49866464]
[1749240159637,0.80334,2487.7,2487.6,0.8033]
[1749240160335,0.80331,2487.9,2487.8,0.80326]
[1749240160743,0.80329,2487.8,2487.7,1.49529]
[1749240160940,0.80329,2487.8,2487.7,0.692]
[1749240161538,0.80329,2487.8,2487.7,1.49532]
[1749240161745,0.80329,2487.8,2487.7,0.692]
[1749240161942,0.80329,2487.8,2487.7,1.49532]
[1749240170246,0.80329,2487.8,2487.7,0.692]
[1749240170546,0.80329,2487.8,2487.7,1.49532]
[1749240177053,0.80335,2487.6,2487.5,0.69530464]
[1749240177252,0.80335,2487.6,2487.5,4.64e-06]
[1749240177852,2.16655,2487.6,2487.5,4.64e-06]
[1749240178545,2.16655,2487.6,2487.5,0.80338464]
[1749240179155,0.80335,2487.6,2487.5,0.80338464]
[1749240179654,0.8033,2487.9,2487.8,0.80326]
[1749240179954,0.80323,2488.1,2487.8,2.00823]
[1749240180152,3.2078,2488.3,2487.9,2.00811]
[1749240180453,4.01093,2488.3,2488.2,0.80316]
[1749240180655,0.80319,2488.2,2488.1,0.80317]
[1749240180842,3.2078,2488.3,2488.2,0.80316]
[1749240181341,4.01093,2488.3,2488.2,0.80316]
[1749240181655,3.2078,2488.3,2488.2,0.80316]
[1749240181847,4.01093,2488.3,2488.2,0.80316]
[1749240182150,0.8031,2488.4,2488.3,0.80313]
[1749240182853,0.80316,2488.3,2488.2,0.80315]
[1749240183558,0.80311,2488.4,2488.3,0.8031]
[1749240183747,0.8031,2488.5,2488.4,0.80307]
[1749240183951,0.80305,2488.6,2488.5,0.80304]
[1749240184254,0.00603464,2488.7,2488.6,0.80303]
[1749240187567,0.00603464,2488.7,2488.3,3.8587]
[1749240187861,0.00603464,2488.7,2488.1,5.70116]
[1749240187862,0.80319,2488.2,2488.1,5.70116]
[1749240188161,0.80319,2488.2,2488.1,0.80316]
[1749240188660,0.80315,2488.3,2488.2,0.80313]
[1749240192953,0.80315,2488.3,2488.2,0.80314]
[1749240192954,0.80317,2488.3,2488.2,0.80314]
[1749240194065,0.80312,2488.4,2488.3,0.80309]
[1749240195367,0.80316,2488.3,2488.2,0.80313]
[1749240195567,0.80312,2488.4,2488.3,0.80308]
[1749240196566,0.80319,2488.2,2488.1,0.80316]
[1749240196864,0.80319,2488.1,2488.0,5.70121]
[1749240197069,0.80322,2488.0,2487.9,0.80323]
[1749240197467,0.80332,2487.8,2487.7,0.80329]
[1749240199467,0.80335,2487.6,2487.5,4.89800464]
[1749240199666,0.80335,2487.6,2487.5,4.64e-06]
[1749240200167,0.80335,2487.6,2487.5,0.80338464]
[1749240200970,0.80335,2487.6,2487.5,4.64e-06]
[1749240201270,4.01115,2487.6,2487.5,0.80338464]
[1749240202269,4.01115,2487.6,2487.5,4.64e-06]
[1749240203169,13.91015,2487.6,2487.5,4.64e-06]
[1749240204265,8.91015,2487.6,2487.5,4.64e-06]
[1749240204461,13.91015,2487.6,2487.5,4.64e-06]
[1749240204768,8.91015,2487.6,2487.5,4.64e-06]
[1749240205066,3.2078,2487.6,2487.5,0.80338464]
[1749240205370,4.15850548,2487.6,2487.5,0.80338464]
[1749240205562,4.96185548,2487.6,2487.5,4.64e-06]
[1749240205762,4.01115,2487.6,2487.5,4.64e-06]
[1749240206666,4.96172192,2487.6,2487.5,4.64e-06]
[1749240207271,9.96172192,2487.6,2487.5,4.64e-06]
[1749240207468,4.96172192,2487.6,2487.5,4.64e-06]
[1749240211669,4.01115,2487.6,2487.5,4.64e-06]
[1749240219572,4.96020638,2487.6,2487.5,4.64e-06]
[1749240220472,9.96020638,2487.6,2487.5,4.64e-06]
[1749240220867,9.96020638,2487.6,2486.7,0.6689]
[1749240220868,0.80374,2486.5,2486.3,1.2609]
[1749240221074,0.80374,2486.5,2486.4,0.6434]
[1749240221376,5.21692,2486.7,2486.1,1.46694]
[1749240221377,0.8038,2486.2,2486.1,1.46694]
[1749240221573,0.8038,2486.2,2486.1,0.6631]
[1749240223368,2.00944,2486.3,2485.9,0.00603464]
[1749240223575,4.01167,2486.0,2485.9,0.00603464]
[1749240224079,5.27647,2486.0,2485.9,0.00603464]
[1749240227073,4.01167,2486.0,2485.9,0.00603464]
[1749240227478,5.27317,2486.0,2485.9,0.00603464]
[1749240227680,4.01167,2486.0,2485.9,0.00603464]
[1749240227979,4.01167,2486.0,2485.9,0.80993464]
[1749240228373,4.01167,2486.0,2485.9,0.00603464]
[1749240230872,4.01167,2486.0,2485.9,0.80993464]
[1749240231582,4.01167,2486.0,2485.9,0.00603464]
[1749240231783,4.01167,2486.0,2485.9,0.80993464]
[1749240231979,4.01157,2486.3,2486.2,0.8038]
[1749240232184,0.80384,2486.2,2486.1,0.80382]
[1749240232883,0.80384,2486.1,2486.0,2.15755]
[1749240233583,0.80383,2486.2,2486.1,0.80384]
[1749240234485,4.0116,2486.3,2486.2,0.8038]
[1749240235080,3.2078,2486.3,2486.0,1.3537]
[1749240235283,4.0116,2486.3,2486.2,0.8038]
[1749240235482,3.2078,2486.3,2486.2,0.8038]
[1749240237382,0.00603464,2486.4,2486.3,0.80377]
[1749240240987,0.8038,2486.3,2486.2,0.80378]
[1749240242688,0.00603464,2486.4,2486.3,0.80377]
[1749240244286,3.9038,2487.0,2486.3,0.80377]
[1749240244287,0.8036,2486.9,2486.8,0.80361]
[1749240248695,4.01137,2487.0,2486.9,0.80358]
[1749240248895,4.95757602,2487.0,2486.9,0.80358]
[1749240249096,4.01137,2487.0,2486.9,0.80358]
[1749240249295,4.95810769,2487.0,2486.9,0.80358]
[1749240249597,4.01137,2487.0,2486.9,0.80358]
[1749240249890,0.00603464,2487.1,2487.0,0.80355]
[1749240250387,1.75678751,2487.1,2487.0,0.80355]
[1749240250790,0.80954464,2487.1,2487.0,0.80355]
[1749240251494,0.00603464,2487.1,2487.0,0.80355]
[1749240251696,0.80954464,2487.1,2487.0,0.80355]
[1749240252800,0.00603464,2487.1,2487.0,0.80355]
[1749240258491,3.8367,2487.7,2487.4,0.80342]
[1749240258694,0.80324,2488.0,2487.9,0.80322]
[1749240258893,4.15539041,2488.0,2487.6,0.80332]
[1749240259090,0.80335,2487.7,2487.6,0.80332]
[1749240259700,2.06426149,2487.9,2487.8,0.80329]
[1749240259904,2.06423149,2487.9,2487.8,0.80329]
[1749240260199,0.80331,2487.8,2487.7,0.8033]
[1749240260400,0.80334,2487.7,2487.6,0.80333]
[1749240261897,0.80725149,2487.9,2487.8,0.80329]
[1749240262096,1.75474927,2487.9,2487.8,0.80329]
[1749240262695,0.80334,2487.7,2487.6,0.80331]
[1749240263392,0.80332,2487.7,2487.6,0.80331]
[1749240265094,0.80335,2487.6,2487.5,0.6401]
[1749240265292,0.80335,2487.6,2487.4,3.21383464]
[1749240265501,0.80335,2487.6,2487.5,0.80338]
[1749240267706,0.80338,2487.5,2487.4,4.01722464]
[1749240267904,0.80337,2487.6,2487.5,0.80335]
[1749240268700,0.80338,2487.5,2487.4,4.01722464]
[1749240269399,0.80338,2487.6,2487.5,0.80336]
[1749240270502,0.80338,2487.5,2487.4,4.01723464]
[1749240272707,0.80338,2487.5,2487.4,0.80943464]
[1749240273002,0.80338,2487.5,2487.4,0.00603464]
[1749240273003,2.10698,2487.5,2487.4,0.00603464]
[1749240273202,3.05601514,2487.5,2487.4,0.00603464]
[1749240274809,4.01115,2487.6,2487.5,0.80338]
[1749240275007,0.94949188,2487.6,2487.5,1.49138]
[1749240275305,3.21178149,2487.9,2487.8,0.80329]
[1749240275506,4.16128582,2487.9,2487.8,0.80329]
[1749240275708,4.9646641,2487.9,2487.8,0.80329]
[1749240276100,3.21178149,2487.9,2487.8,0.80329]
[1749240276510,4.01503149,2487.9,2487.8,0.80329]
[1749240276906,0.80723149,2487.9,2487.8,0.80329]
[1749240277615,0.80332,2487.8,2487.7,0.80329]
[1749240278316,0.00398149,2487.9,2487.8,0.80329]
[1749240278317,0.80726149,2487.9,2487.8,0.80329]
[1749240278616,0.00398149,2487.9,2487.8,0.80329]
[1749240279016,0.80723149,2487.9,2487.8,0.80329]
[1749240281718,2.00826,2487.8,2487.4,0.00603464]
[1749240282022,0.80338,2487.5,2487.4,0.00603464]
[1749240282616,1.7742938,2487.5,2487.4,0.00603464]
[1749240282921,3.8257938,2487.5,2487.4,0.00603464]
[1749240288120,3.82505616,2487.5,2487.4,0.00603464]
[1749240288717,8.71705616,2487.5,2487.4,0.00603464]
[1749240290014,8.71705616,2487.5,2487.4,0.80945464]
[1749240290223,8.71705616,2487.5,2487.4,0.00603464]
[1749240292923,1.77355616,2487.5,2487.4,0.00603464]
[1749240293423,0.80338,2487.5,2487.4,0.00603464]
[1749240293624,1.77357073,2487.5,2487.4,0.00603464]
[1749240296226,3.16777073,2487.5,2487.4,0.00603464]
[1749240298931,0.80361,2486.8,2486.7,0.6696]
[1749240299125,0.80361,2486.8,2486.7,0.6609]
[1749240299324,2.00893,2487.0,2486.6,3.2078]
[1749240299325,0.80365,2486.7,2486.6,3.2078]
[1749240299928,0.80368,2486.6,2486.5,0.6609]
[1749240300622,0.80371,2486.5,2486.4,0.00603464]
[1749240300930,5.35151,2486.5,2486.4,0.00603464]
[1749240301130,6.34053728,2486.5,2486.4,0.00603464]
[1749240302330,6.34053728,2486.5,2485.9,0.6746]
[1749240302331,0.80387,2486.0,2485.9,0.6746]
[1749240303422,0.80394,2485.8,2485.7,0.00603464]
[1749240303627,0.80393,2485.9,2485.8,0.80393]
[1749240303824,0.00603464,2486.2,2486.1,0.80384]
[1749240304325,0.00603464,2486.2,2486.1,5.80384]
[1749240304633,0.80361,2486.8,2486.7,0.80364]
[1749240305029,0.8036,2486.9,2486.8,0.8036]
[1749240305326,0.80364,2486.8,2486.7,0.80363]
[1749240305935,0.80367,2486.7,2486.6,0.80365]
[1749240306133,0.80364,2486.8,2486.7,0.80363]
[1749240306433,0.80367,2486.7,2486.6,0.80364]
[1749240307135,0.80364,2486.8,2486.7,0.80362]
[1749240309328,0.00603464,2486.9,2486.8,0.80361]
[1749240309936,0.00603464,2486.9,2486.8,2.18861]
[1749240310130,0.80961464,2486.9,2486.8,2.18861]
[1749240310738,0.80961464,2486.9,2486.8,7.07761]
[1749240312439,0.80961464,2486.9,2486.4,3.2078]
[1749240312440,0.80371,2486.5,2486.4,4.01153]
[1749240312643,0.80374,2486.4,2486.3,0.6365]
[1749240312838,0.80384,2486.1,2486.0,1.44035]
[1749240313142,0.80384,2486.1,2486.0,0.6365]
[1749240313345,0.80384,2486.1,2486.0,1.44037]
[1749240313539,0.80384,2486.1,2486.0,0.6365]
[1749240313941,0.80384,2486.1,2486.0,1.44037]
[1749240314144,0.80394,2485.8,2485.7,0.00603464]
[1749240317549,0.80394,2485.8,2485.7,0.81000464]
[1749240318352,0.8039,2486.0,2485.9,0.80389]
[1749240318549,6.89962,2486.1,2485.7,0.00603464]
[1749240318750,0.80394,2485.8,2485.7,0.80999464]
[1749240319857,0.80394,2485.8,2485.7,0.00603464]
[1749240320446,0.80393,2485.9,2485.8,0.80391]
[1749240321048,0.8039,2486.0,2485.9,0.80388]
[1749240321450,0.80394,2485.9,2485.8,0.80393]
[1749240322248,0.80389,2486.1,2486.0,0.80384]
[1749240324957,0.80394,2485.8,2485.7,2.09075464]
[1749240325255,0.80394,2485.8,2485.7,0.00603464]
[1749240325553,0.80394,2485.8,2485.7,0.81000464]
[1749240327453,0.80392,2485.9,2485.8,0.80389]
[1749240327949,0.80387,2486.1,2486.0,0.80384]
[1749240328155,3.2078,2486.2,2486.1,0.80384]
[1749240328350,0.80366,2486.7,2486.6,0.80365]
[1749240328558,0.00603464,2486.9,2486.8,0.80361]
[1749240328851,0.80961464,2486.9,2486.8,0.80361]
[1749240330352,0.80365,2486.8,2486.7,0.80363]
[1749240330553,0.00603464,2486.9,2486.6,0.6515]
[1749240330554,0.00603464,2486.9,2486.8,0.80361]
[1749240331353,0.00603464,2486.9,2486.8,2.15221]
[1749240332058,0.00603464,2486.9,2486.8,0.80361]
[1749240332260,0.80961464,2486.9,2486.8,0.80361]
[1749240332452,0.00603464,2486.9,2486.8,0.80361]
[1749240332653,0.80961464,2486.9,2486.8,0.80361]
[1749240333055,0.00603464,2486.9,2486.8,0.80361]
[1749240333856,0.00603464,2486.9,2486.8,7.03921]
[1749240334258,4.887,2487.6,2487.1,2.00878]
[1749240334459,5.69037,2487.6,2487.5,0.80339]
[1749240334760,0.80345,2487.4,2487.3,0.80344]
[1749240335254,0.80345,2487.3,2487.2,1.46704]
[1749240335656,0.80345,2487.4,2487.3,0.80343]
[1749240336362,0.80345,2487.3,2487.2,1.46707]
[1749240336560,0.80345,2487.3,2487.2,0.80347]
[1749240336767,0.80348,2487.2,2487.1,4.01732464]
[1749240336962,0.80348,2487.2,2487.1,3.21383464]
[1749240337264,0.80348,2487.2,2487.1,0.00603464]
[1749240337755,0.80348,2487.2,2487.1,0.80955464]
[1749240337965,0.80348,2487.2,2487.1,0.00603464]
[1749240338960,6.57088,2487.4,2487.2,0.80345]
[1749240338961,0.80348,2487.3,2487.2,0.80345]
[1749240339161,2.15798,2487.3,2487.2,0.80345]
[1749240339366,0.80348,2487.3,2487.2,0.80345]
[1749240340265,0.80348,2487.2,2487.1,0.80954464]
[1749240340566,0.80348,2487.2,2487.1,0.00603464]
[1749240342965,0.80348,2487.2,2487.1,0.80955464]
[1749240346359,0.80348,2487.2,2487.1,0.00603464]
[1749240346567,0.80368,2486.6,2486.5,5.68969]
[1749240346867,0.80368,2486.6,2486.5,5.68971]
[1749240347266,0.80368,2486.6,2486.5,4.886]
[1749240347467,0.80381,2486.2,2486.1,1.45204]
[1749240347667,3.2078,2486.2,2485.9,4.89203464]
[1749240347868,0.80387,2486.0,2485.9,0.80990464]
[1749240348664,0.80387,2486.0,2485.9,0.00603464]
[1749240348973,0.80387,2486.0,2485.9,0.80994464]
[1749240349665,0.80387,2486.0,2485.9,0.88127815]
[1749240351966,0.80387,2486.0,2485.9,0.07736815]
[1749240352174,4.01167,2486.0,2485.9,0.07736815]
[1749240352369,4.64217,2486.0,2485.9,0.07736815]
[1749240352666,4.64217,2486.0,2485.1,2.73678]
[1749240352667,2.00989,2485.8,2485.1,0.72638]
[1749240352866,0.80413,2485.2,2485.1,0.72638]
[1749240353671,2.15833,2485.2,2485.1,0.72638]
[1749240362074,4.02109,2485.0,2484.2,1.39609]
[1749240362282,11.2402,2485.2,2483.0,3.2078]
[1749240362283,0.80473,2483.5,2483.0,3.2078]
[1749240362472,3.2078,2484.0,2483.3,3.2078]
[1749240362877,3.2078,2484.0,2483.8,0.80458]
[1749240363081,3.2078,2484.0,2483.4,0.6423]
[1749240363082,3.2078,2484.0,2483.9,0.80457]
[1749240363280,0.685,2484.4,2483.9,0.80457]
[1749240363281,8.0938,2485.5,2483.9,3.2078]
[1749240363582,8.0938,2485.5,2484.0,3.2078]
[1749240363583,2.01079,2484.7,2484.0,3.2078]
[1749240363891,0.80449,2484.2,2484.0,4.01232]
[1749240364177,0.80451,2484.1,2484.0,3.2078]
[1749240364372,2.13971,2484.1,2484.0,3.2078]
[1749240364574,1.3352,2484.1,2484.0,3.2078]
[1749240364785,0.00603464,2484.3,2484.2,0.80448]
[1749240369383,0.00603464,2484.3,2484.1,0.8045]
[1749240369583,0.00603464,2484.3,2484.0,3.27913351]
[1749240369584,2.17658464,2484.3,2484.2,0.80448]
[1749240369783,1.37213464,2484.3,2484.2,0.80448]
[1749240370290,0.80449,2484.2,2484.1,0.80448]
[1749240370481,2.17659464,2484.3,2484.2,0.80448]
[1749240370682,2.17657464,2484.3,2484.2,0.80448]
[1749240370886,1.37213464,2484.3,2484.2,0.80448]
[1749240371084,0.00603464,2484.3,2484.2,0.80448]
[1749240371686,0.00603464,2484.3,2484.2,2.13578]
[1749240372186,0.00603464,2484.3,2484.2,0.80448]
[1749240374485,0.6729,2484.9,2484.8,0.80428]
[1749240374691,0.6729,2484.9,2484.8,4.01208]
[1749240374896,0.6581,2485.2,2485.1,0.80419]
[1749240375394,0.80424,2485.0,2484.9,0.80423]
[1749240375793,0.80425,2484.9,2484.8,4.01206]
[1749240375988,0.80425,2484.9,2484.8,3.2078]
[1749240376385,0.80428,2484.8,2484.7,0.00603464]
[1749240376590,2.20098,2484.8,2484.7,0.00603464]
[1749240377589,0.66413464,2485.2,2485.0,0.80419]
[1749240377897,0.66413464,2485.2,2484.9,4.01203]
[1749240378089,0.80422,2485.0,2484.9,4.01203]
[1749240378588,0.80422,2485.0,2484.9,3.2078]
[1749240378794,0.80428,2484.9,2484.8,0.80426]
[1749240380785,1.81116779,2484.9,2484.8,0.80426]
[1749240380985,2.06083464,2485.2,2484.8,0.80426]
[1749240380986,2.06083464,2485.2,2485.0,0.80419]
[1749240381190,6.69813215,2485.1,2485.0,0.80419]
[1749240381794,5.89392215,2485.1,2485.0,0.80419]
[1749240382195,0.80422,2485.0,2484.9,0.80424]
[1749240382396,1.81114215,2485.0,2484.9,0.80424]
[1749240382789,1.00692215,2485.0,2484.9,0.80424]
[1749240384491,1.81114215,2485.0,2484.9,0.80424]
[1749240384695,0.80425,2484.9,2484.8,4.75289351]
[1749240384894,1.81117215,2484.9,2484.8,4.75289351]
[1749240386101,1.00692215,2484.9,2484.8,4.75289351]
[1749240386306,0.80423,2485.0,2484.9,0.80425]
[1749240386498,1.8127235,2485.0,2484.9,0.80425]
[1749240386801,0.80423,2485.0,2484.9,2.19035]
[1749240386996,0.80425,2484.9,2484.8,3.94863351]
[1749240387196,0.80425,2484.9,2484.8,0.07133351]
[1749240387693,0.80425,2484.9,2484.0,4.02725]
[1749240387694,0.80451,2484.1,2484.0,0.6298]
[1749240387899,0.80451,2484.1,2483.9,4.01235]
[1749240387900,0.80454,2484.0,2483.9,3.2078]
[1749240388396,0.80461,2483.8,2483.7,0.6706]
[1749240388602,1.00861842,2484.0,2483.6,3.2078]
[1749240388603,0.80464,2483.7,2483.6,3.2078]
[1749240389501,0.80464,2483.7,2483.6,4.01247]
[1749240390207,0.80464,2483.7,2483.6,3.2078]
[1749240391106,0.80464,2483.7,2483.6,4.01247]
[1749240391603,0.80464,2483.7,2483.6,3.2078]
[1749240392005,0.80464,2483.7,2483.6,4.01247]
[1749240393919,0.80464,2483.7,2483.6,3.2078]
[1749240394308,0.80464,2483.7,2483.6,4.08380351]
[1749240394909,0.80463,2483.8,2483.7,0.80461]
[1749240395206,0.00603464,2483.9,2483.8,0.80461]